bitfinex/quotes_SOLUSD_20240716
["timestamp","ask_amount","ask_price","bid_price","bid_amount"]
[1721142053426,14.5000451,156.02,156.01,6.4096]
[1721142053928,14.6700451,156.02,156.01,6.4096]
[1721142055008,14.8400451,156.02,156.01,6.4096]
[1721142055432,14.8400451,156.02,156.0,6.4102]
[1721142055731,14.5000451,156.02,156.01,6.4098]
[1721142055931,14.8400451,156.02,156.01,6.4098]
[1721142057433,14.8400451,156.02,156.0,6.4101]
[1721142057601,14.5000451,156.02,156.0,6.4101]
[1721142057806,0.34,156.01,156.0,6.4101]
[1721142058031,14.5000451,156.0,155.99,22.4365]
[1721142058413,14.8400451,156.0,155.99,22.4365]
[1721142062255,14.8400451,156.0,155.99,16.026]
[1721142062737,14.8400451,156.0,155.99,22.4366]
[1721142063320,14.8400451,156.0,155.99,16.026]
[1721142063636,14.8400451,156.0,155.99,22.4366]
[1721142065516,14.8400451,156.0,155.99,16.026]
[1721142065842,14.8400451,156.0,155.99,22.4366]
[1721142067022,14.5000451,156.0,155.99,22.4366]
[1721142068019,14.5000451,156.0,155.99,16.026]
[1721142068421,14.8400451,156.0,155.99,16.026]
[1721142068742,14.5000451,155.98,155.96,16.8718563]
[1721142069048,14.5000451,155.98,155.96,23.2836563]
[1721142069049,0.17,155.97,155.96,23.2836563]
[1721142069215,0.34,155.97,155.96,23.2836563]
[1721142069820,0.17,155.97,155.96,23.2836563]
[1721142070026,0.17,155.97,155.96,22.7836563]
[1721142072627,14.5000451,155.98,155.97,6.4114]
[1721142072824,14.8400451,155.98,155.97,6.4114]
[1721142073752,14.8400451,155.98,155.96,22.7835563]
[1721142073927,0.17,155.97,155.96,22.7835563]
[1721142074129,0.34,155.97,155.96,16.3718563]
[1721142074466,0.34,155.97,155.96,22.7837563]
[1721142074926,0.17,155.97,155.96,22.7837563]
[1721142076949,0.34,155.97,155.96,22.7837563]
[1721142077150,14.5000451,156.03,155.96,0.3428563]
[1721142077362,14.5000451,156.03,156.02,22.4329]
[1721142078435,36.1631451,156.05,156.04,6.4086]
[1721142079158,21.6631,156.05,156.04,6.4086]
[1721142080755,21.6631,156.05,156.02,16.0235]
[1721142080933,21.6631,156.05,156.04,6.4086]
[1721142081965,22.0031,156.05,156.04,6.4086]
[1721142082430,21.8331,156.05,156.04,6.4086]
[1721142085404,21.6631,156.05,156.04,6.4086]
[1721142085660,21.6631,156.05,156.04,26.4086]
[1721142088436,21.6631,156.05,156.04,6.4086]
[1721142088642,14.5000451,156.04,156.02,16.0235]
[1721142089043,0.34,156.03,156.02,22.4327]
[1721142089570,0.34,156.03,156.02,16.0235]
[1721142090477,0.34,156.03,156.0,6.4101]
[1721142090777,14.5000451,156.01,155.99,16.0262]
[1721142091078,0.17,156.0,155.99,16.0262]
[1721142091286,0.34,156.0,155.99,16.0262]
[1721142091572,0.34,156.0,155.99,22.4368]
[1721142093766,14.5000451,155.99,155.98,6.4109]
[1721142094086,14.6700451,155.99,155.98,6.4109]
[1721142094263,14.8400451,155.99,155.98,6.4109]
[1721142095080,14.8400451,155.99,155.97,6.4114]
[1721142095259,14.5000451,155.99,155.97,6.4114]
[1721142095459,0.34,155.98,155.97,6.4114]
[1721142096065,14.5000451,155.97,155.96,0.3428563]
[1721142096360,59.6700451,155.97,155.96,0.3428563]
[1721142096674,66.2514451,155.97,155.96,0.3428563]
[1721142097860,59.8400451,155.97,155.96,0.3428563]
[1721142098251,66.2514451,155.97,155.96,0.3428563]
[1721142100573,59.8400451,155.97,155.96,0.3428563]
[1721142100889,14.5000451,155.97,155.96,0.3428563]
[1721142101885,20.9114451,155.97,155.96,0.3428563]
[1721142102385,21.0814451,155.97,155.96,0.3428563]
[1721142102563,66.2514451,155.97,155.96,0.3428563]
[1721142102887,59.8400451,155.97,155.96,0.3428563]
[1721142104386,59.8400451,155.97,155.96,6.7547563]
[1721142104387,14.8400451,155.97,155.96,6.7547563]
[1721142104685,14.5000451,155.97,155.96,6.7547563]
[1721142104884,14.5000451,155.97,155.96,0.3428563]
[1721142105896,21.0814451,155.97,155.96,0.3428563]
[1721142106080,21.2514451,155.97,155.96,0.3428563]
[1721142106392,66.2514451,155.97,155.96,0.3428563]
[1721142108404,59.8400451,155.97,155.96,0.3428563]
[1721142109503,14.8400451,155.97,155.96,0.3428563]
[1721142109868,14.8400451,155.97,155.94,6.4126]
[1721142109869,14.5000451,155.95,155.94,6.2554563]
[1721142110074,14.6700451,155.95,155.94,6.2554563]
[1721142110399,14.8400451,155.95,155.94,6.2554563]
[1721142114988,14.5000451,155.99,155.96,16.0297]
[1721142115191,14.5000451,155.99,155.98,6.411]
[1721142115414,6.4078,156.06,155.94,72.4864]
[1721142115415,14.5000451,156.04,156.01,6.4096]
[1721142115569,14.5000451,156.04,156.0,22.4352]
[1721142116095,14.5000451,156.04,156.01,6.4098]
[1721142116276,14.5000451,156.04,156.0,22.4352]
[1721142116471,0.17,156.03,156.0,22.4352]
[1721142116680,0.34,156.03,156.0,22.4352]
[1721142116879,14.5000451,156.02,156.0,22.4352]
[1721142117098,0.17,156.01,156.0,22.4352]
[1721142117291,0.34,156.01,156.0,22.4352]
[1721142120104,0.17,156.01,156.0,38.9926]
[1721142120292,14.5000451,156.06,156.03,16.0225]
[1721142120495,258.1,156.13,156.09,6.4062]
[1721142120678,258.1,156.13,156.08,16.0171]
[1721142120679,14.5000451,156.11,156.1,6.4061]
[1721142120883,14.5000451,156.11,156.09,6.4064]
[1721142121199,14.5000451,156.09,156.08,16.0171]
[1721142121403,14.5000451,156.09,156.05,16.0198]
[1721142121705,14.5000451,156.06,156.05,16.0198]
[1721142121902,14.5000451,156.08,156.05,22.428]
[1721142122107,0.17,156.07,156.06,6.4076]
[1721142122320,0.34,156.07,156.06,6.4076]
[1721142122993,0.34,156.07,156.05,22.4278]
[1721142123188,14.5000451,156.06,156.04,6.4085]
[1721142123504,0.17,156.05,156.04,6.4085]
[1721142123682,0.34,156.05,156.04,6.4085]
[1721142124503,0.17,156.05,156.04,6.4085]
[1721142125410,14.5000451,156.1,156.09,6.4065]
[1721142125708,14.5000451,156.13,156.11,6.4054]
[1721142126015,14.5000451,156.15,156.13,6.4045]
[1721142126433,258.1,156.21,156.14,15.5364]
[1721142126587,258.1,156.21,156.2,54.5559]
[1721142126783,258.1,156.21,156.2,119.5559]
[1721142127019,14.5000451,156.34,156.28,6.3987]
[1721142127311,14.5000451,156.3,156.28,6.3987]
[1721142127493,14.5000451,156.29,156.27,6.3991]
[1721142127810,14.5000451,156.29,156.26,15.9979]
[1721142128307,14.5000451,156.29,156.27,6.399]
[1721142128510,14.5000451,156.27,156.26,15.9979]
[1721142129090,14.5000451,156.27,156.22,16.0022]
[1721142129305,14.5000451,156.27,156.2,74.6005]
[1721142129618,14.5000451,156.29,156.26,6.3995]
[1721142129816,14.5000451,156.29,156.28,6.3987]
[1721142129988,258.9428563,156.35,156.3,6.3978]
[1721142130190,14.5000451,156.33,156.29,15.995]
[1721142130593,20.8967451,156.33,156.27,6.3987]
[1721142130794,14.5000451,156.33,156.28,6.3984]
[1721142130989,14.5000451,156.33,156.22,32.0048]
[1721142131222,14.5000451,156.33,156.29,15.9951]
[1721142131622,20.8967451,156.33,156.29,15.9951]
[1721142131793,14.5000451,156.29,156.26,22.3982]
[1721142132522,0.34,156.28,156.26,22.3982]
[1721142132698,0.34,156.28,156.27,6.3991]
[1721142132894,0.34,156.28,156.26,15.9987]
[1721142133592,0.34,156.28,156.25,6.3996]
[1721142133793,51.7388,156.28,156.23,22.4021]
[1721142134091,0.34,156.28,156.25,15.9993]
[1721142134734,0.34,156.28,156.27,6.3991]
[1721142135324,14.5000451,156.27,156.25,22.3992]
[1721142135493,14.5000451,156.27,156.26,6.3995]
[1721142135694,14.8400451,156.27,156.26,6.3995]
[1721142136115,14.8400451,156.27,156.25,15.9993]
[1721142136322,14.5000451,156.27,156.26,6.3995]
[1721142136511,14.8400451,156.27,156.26,6.3995]
[1721142136830,14.8400451,156.27,156.25,22.3992]
[1721142137034,14.8400451,156.27,156.22,16.0029]
[1721142137035,0.17,156.26,156.22,16.0029]
[1721142137204,14.5000451,156.25,156.22,16.0029]
[1721142137536,14.5000451,156.28,156.25,6.3995]
[1721142137711,14.5000451,156.26,156.25,6.4]
[1721142137894,14.6700451,156.26,156.22,6.4008]
[1721142138102,0.17,156.25,156.22,6.4008]
[1721142139397,0.34,156.23,156.22,6.4011]
[1721142140195,0.10562458,156.27,156.23,22.4703]
[1721142140400,15.0,156.49,156.22,1.28008428]
[1721142140401,0.8428563,156.51,156.49,15.9754]
[1721142140823,0.8428563,156.51,156.5,6.3897]
[1721142141114,0.8428563,156.51,156.49,6.3901]
[1721142141315,0.8428563,156.51,156.5,6.3897]
[1721142141507,0.3428563,156.51,156.5,6.3897]
[1721142142610,0.3428563,156.51,156.49,22.3646]
[1721142142932,0.3428563,156.51,156.5,6.3897]
[1721142143112,0.3428563,156.51,156.49,15.9745]
[1721142143315,0.3428563,156.51,156.47,6.3906]
[1721142143521,0.3428563,156.51,156.42,31.9633]
[1721142143717,0.3428563,156.51,156.43,20.0]
[1721142143919,0.3428563,156.51,156.45,15.9795]
[1721142144111,0.17,156.5,156.47,6.3907]
[1721142144840,0.17,156.5,156.45,15.9795]
[1721142145336,0.17,156.5,156.47,6.3909]
[1721142145517,0.17,156.5,156.45,15.9795]
[1721142146207,0.17,156.5,156.46,0.36537351]
[1721142146413,0.17,156.5,156.46,6.75637351]
[1721142146633,0.17,156.5,156.46,0.36537351]
[1721142146936,0.17,156.5,156.47,15.9767]
[1721142147444,6.5601,156.5,156.44,6.3918]
[1721142147634,6.3902,156.49,156.43,22.3729]
[1721142147837,6.3898,156.5,156.43,15.9807]
[1721142148147,0.17,156.49,156.43,15.9807]
[1721142148347,6.7322563,156.51,156.46,6.3914]
[1721142148520,0.17,156.5,156.47,6.3909]
[1721142149130,6.5598,156.5,156.45,22.3706]
[1721142149440,0.17,156.5,156.42,15.9825]
[1721142149741,6.3914,156.46,156.42,15.9825]
[1721142149947,65.3428563,156.51,156.41,6.3933]
[1721142150143,0.17,156.45,156.42,6.3929]
[1721142150319,35.42,156.49,156.41,15.983]
[1721142150320,6.3907,156.48,156.43,6.3926]
[1721142150642,51.561,156.47,156.43,6.3926]
[1721142151157,0.17,156.47,156.45,6.3914]
[1721142151319,0.17,156.47,156.43,15.9807]
[1721142151320,0.17,156.47,156.44,6.3921]
[1721142151648,0.17,156.48,156.4,15.9842]
[1721142151819,0.17,156.48,156.42,6.3929]
[1721142152149,6.5607,156.48,156.43,6.3925]
[1721142152325,0.17,156.48,156.4,15.9842]
[1721142152516,6.3775,156.48,156.4,15.9842]
[1721142152715,6.3915,156.46,156.41,6.3933]
[1721142152968,6.3919,156.45,156.4,22.3779]
[1721142153151,6.5619,156.45,156.4,22.3779]
[1721142153352,21.4283,156.49,156.43,15.981]
[1721142153844,21.4283,156.49,156.38,31.9729]
[1721142153845,6.3913,156.47,156.42,6.3926]
[1721142154217,6.3913,156.47,156.43,6.3926]
[1721142154726,0.17,156.46,156.42,22.3751]
[1721142154934,0.17,156.46,156.42,15.9821]
[1721142155321,0.17,156.46,156.43,6.3925]
[1721142155528,0.17,156.47,156.44,6.3921]
[1721142155925,6.5611,156.47,156.42,15.9821]
[1721142156152,0.17,156.47,156.42,22.3751]
[1721142156449,0.3428563,156.51,156.38,51.2329]
[1721142156750,0.3428563,156.51,156.48,22.3665]
[1721142156953,0.3428563,156.51,156.49,6.3901]
[1721142157161,0.3428563,156.51,156.45,15.9788]
[1721142157331,0.3428563,156.51,156.46,1.27643336]
[1721142157732,0.3428563,156.51,156.49,6.3901]
[1721142157962,0.3428563,156.51,156.48,7.66826673]
[1721142158264,6.7323563,156.51,156.49,1.27745855]
[1721142158567,0.3428563,156.51,156.49,1.27745855]
[1721142158730,0.3428563,156.51,156.46,15.978]
[1721142159063,0.3428563,156.51,156.46,22.3694]
[1721142159064,0.17,156.5,156.46,22.3694]
[1721142159232,6.5598,156.5,156.46,22.3694]
[1721142159436,6.5598,156.5,156.43,6.1147]
[1721142159437,6.3903,156.49,156.44,6.3918]
[1721142159637,6.5599,156.5,156.45,6.3915]
[1721142159849,6.3902,156.49,156.45,6.3915]
[1721142160366,0.17,156.48,156.44,6.3921]
[1721142160540,0.17,156.48,156.45,6.3917]
[1721142161252,0.17,156.48,156.41,6.3931]
[1721142161253,6.3917,156.46,156.41,6.3931]
[1721142161472,51.2598,156.48,156.41,6.3933]
[1721142161632,6.391,156.47,156.4,15.9843]
[1721142161839,6.5614,156.46,156.41,6.3933]
[1721142162046,0.17,156.46,156.4,22.378]
[1721142162243,0.17,156.46,156.4,15.9843]
[1721142162244,45.17,156.46,156.4,15.9843]
[1721142162458,6.3924,156.44,156.4,15.9843]
[1721142162846,0.17,156.43,156.4,15.9843]
[1721142163238,51.5629,156.43,156.36,15.9878]
[1721142163434,6.5629,156.43,156.36,15.9878]
[1721142163639,45.0,156.42,156.37,1.21554258]
[1721142163945,6.3925,156.44,156.39,6.3939]
[1721142164152,0.17,156.41,156.39,6.3939]
[1721142164456,0.17,156.41,156.4,6.3938]
[1721142164847,0.17,156.41,156.38,22.3807]
[1721142165177,0.17,156.42,156.38,22.3808]
[1721142165960,0.17,156.42,156.38,15.9862]
[1721142166153,0.17,156.42,156.39,6.3941]
[1721142166343,6.3922,156.44,156.38,15.9862]
[1721142166545,0.17,156.43,156.38,15.9862]
[1721142166841,15.0,156.49,156.38,15.9862]
[1721142166842,15.5453,156.5,156.47,6.3907]
[1721142167050,21.9351,156.5,156.45,15.979]
[1721142167255,6.3903,156.49,156.45,15.979]
[1721142167557,15.5453,156.5,156.45,16.68557915]
[1721142167558,21.9354,156.5,156.45,16.68557915]
[1721142167767,21.9354,156.5,156.45,22.3707]
[1721142167938,6.3907,156.48,156.43,6.3922]
[1721142168140,6.3902,156.49,156.44,0.70644365]
[1721142168346,6.3906,156.48,156.44,0.70644365]
[1721142168666,15.5453,156.5,156.45,6.3917]
[1721142168843,6.3904,156.49,156.44,0.70644365]
[1721142169764,6.3904,156.49,156.44,7.09854365]
[1721142169973,21.9351,156.5,156.45,6.3917]
[1721142170171,0.17,156.48,156.47,6.391]
[1721142170473,15.5453,156.5,156.47,6.391]
[1721142170665,0.3428563,156.51,156.48,6.3905]
[1721142171078,0.3428563,156.51,156.43,4.79097946]
[1721142171365,0.3428563,156.51,156.46,6.3912]
[1721142171570,6.3901,156.5,156.45,22.3707]
[1721142171943,0.3428563,156.51,156.43,4.79097946]
[1721142172151,6.3908,156.48,156.43,11.18327946]
[1721142172470,0.17,156.47,156.43,11.18327946]
[1721142172772,6.3922,156.44,156.43,4.79097946]
[1721142173158,6.5622,156.44,156.43,4.79097946]
[1721142173361,0.17,156.44,156.43,4.79097946]
[1721142173666,6.5622,156.44,156.43,4.79097946]
[1721142173888,51.5622,156.44,156.43,4.79097946]
[1721142174043,100.59,156.44,156.36,15.9883]
[1721142174244,6.3939,156.4,156.35,6.3958]
[1721142174465,0.17,156.39,156.35,6.3958]
[1721142175050,45.17,156.39,156.33,22.3877]
[1721142175252,0.17,156.39,156.34,6.3962]
[1721142176057,6.5643,156.39,156.34,6.3962]
[1721142176249,0.17,156.39,156.35,6.3957]
[1721142176565,0.17,156.39,156.33,15.9913]
[1721142176566,45.17,156.4,156.36,6.3954]
[1721142176741,0.17,156.4,156.35,15.989]
[1721142176945,0.17,156.4,156.38,6.3943]
[1721142177556,0.17,156.41,156.37,22.3818]
[1721142177760,0.17,156.41,156.38,6.3946]
[1721142177968,45.0,156.42,156.38,6.3946]
[1721142178161,45.17,156.42,156.38,6.3946]
[1721142178369,0.17,156.42,156.38,6.3946]
[1721142179594,0.17,156.42,156.39,15.9849]
[1721142180095,0.17,156.42,156.31,51.2465]
[1721142180096,6.563,156.42,156.37,6.3949]
[1721142180265,6.563,156.42,156.38,15.9858]
[1721142180266,0.17,156.42,156.38,15.9858]
[1721142180461,0.17,156.42,156.35,31.9787]
[1721142180685,22.3158,156.48,156.43,6.3925]
[1721142180893,22.3158,156.48,156.44,6.3922]
[1721142181184,6.3911,156.47,156.42,15.982]
[1721142181366,6.3923,156.44,156.39,15.9853]
[1721142181680,6.3923,156.44,156.39,22.3792]
[1721142181885,15.9252,156.48,156.37,6.3947]
[1721142181886,6.3931,156.42,156.37,6.3947]
[1721142182190,6.3927,156.43,156.38,6.3946]
[1721142182393,0.17,156.42,156.39,6.3941]
[1721142182759,6.3918,156.45,156.41,6.3933]
[1721142182959,0.17,156.44,156.41,6.3933]
[1721142183287,51.3918,156.45,156.4,22.3773]
[1721142183486,0.17,156.44,156.4,15.9836]
[1721142183801,0.17,156.44,156.42,15.982]
[1721142183967,0.17,156.44,156.42,22.3749]
[1721142184291,6.3914,156.46,156.42,15.982]
[1721142184478,15.9252,156.48,156.42,15.982]
[1721142184479,6.391,156.47,156.42,15.982]
[1721142184669,6.3918,156.45,156.42,15.982]
[1721142184872,15.9252,156.48,156.42,15.982]
[1721142185092,6.3918,156.45,156.41,6.3933]
[1721142185600,0.17,156.44,156.41,6.3933]
[1721142185894,0.17,156.44,156.4,6.3937]
[1721142186282,6.3929,156.43,156.39,15.985]
[1721142186599,0.17,156.42,156.39,15.985]
[1721142186766,0.17,156.42,156.39,22.3791]
[1721142186967,51.3923,156.44,156.4,6.3937]
[1721142187173,0.17,156.43,156.39,15.985]
[1721142187383,0.17,156.43,156.41,6.3931]
[1721142187585,0.17,156.43,156.39,15.985]
[1721142187975,0.17,156.43,156.41,22.3762]
[1721142188276,0.17,156.43,156.42,6.393]
[1721142188676,22.3159,156.48,156.43,6.3925]
[1721142188872,6.391,156.47,156.42,6.3929]
[1721142189075,22.3158,156.48,156.43,6.3925]
[1721142189479,6.3918,156.45,156.41,22.3762]
[1721142189691,6.3914,156.46,156.42,6.3929]
[1721142189897,6.391,156.47,156.43,6.3924]
[1721142190095,15.9252,156.48,156.43,6.3924]
[1721142190096,22.3159,156.48,156.43,6.3924]
[1721142190299,6.391,156.47,156.43,6.3924]
[1721142190474,15.9252,156.48,156.44,6.392]
[1721142190995,6.3914,156.46,156.42,6.3929]
[1721142191494,0.17,156.45,156.42,6.3929]
[1721142191698,6.3917,156.46,156.41,6.3933]
[1721142191892,0.17,156.45,156.4,15.9839]
[1721142192199,0.17,156.46,156.4,22.3776]
[1721142192396,6.3922,156.44,156.4,22.3776]
[1721142192605,0.17,156.43,156.4,22.3776]
[1721142192808,0.17,156.43,156.37,15.9872]
[1721142192809,6.563,156.43,156.37,15.9872]
[1721142192975,0.17,156.43,156.37,15.9872]
[1721142193179,6.3937,156.41,156.37,22.3822]
[1721142193482,0.17,156.43,156.34,28.9302]
[1721142193483,6.3943,156.39,156.34,28.9302]
[1721142193683,6.3943,156.39,156.34,22.3864]
[1721142193999,0.17,156.38,156.36,6.3953]
[1721142194298,6.3935,156.41,156.36,6.3953]
[1721142194507,45.17,156.4,156.36,6.3953]
[1721142194993,51.5641,156.4,156.35,6.3958]
[1721142195176,6.3943,156.39,156.35,6.3958]
[1721142195579,0.17,156.38,156.35,6.3958]
[1721142195812,51.394,156.4,156.35,6.3958]
[1721142195980,0.17,156.39,156.36,6.3953]
[1721142196605,0.17,156.39,156.36,22.3835]
[1721142196806,15.9792,156.46,156.38,15.9864]
[1721142196807,6.3928,156.43,156.38,15.9864]
[1721142197103,6.563,156.42,156.38,15.9864]
[1721142197303,6.3935,156.41,156.38,15.9864]
[1721142197476,22.6414,156.46,156.38,22.3808]
[1721142197681,65.0,156.45,156.38,15.9864]
[1721142197887,65.0,156.45,156.37,6.395]
[1721142197888,6.3934,156.41,156.37,6.395]
[1721142198289,6.3938,156.4,156.36,6.3954]
[1721142198600,6.3938,156.4,156.35,22.3848]
[1721142198792,0.17,156.39,156.35,15.989]
[1721142199176,65.0,156.45,156.35,15.989]
[1721142199177,45.0,156.4,156.35,15.989]
[1721142199373,0.17,156.39,156.35,15.989]
[1721142199789,6.3927,156.43,156.37,15.9871]
[1721142200105,0.17,156.42,156.37,15.9871]
[1721142200478,6.3923,156.44,156.39,6.3939]
[1721142201001,6.3923,156.44,156.4,6.3938]
[1721142201302,6.3923,156.44,156.39,6.3941]
[1721142201799,0.17,156.43,156.39,6.3941]
[1721142202107,13.0538,156.46,156.41,6.3931]
[1721142202282,6.6622,156.46,156.4,6.3938]
[1721142202678,6.3925,156.44,156.4,6.3938]
[1721142202877,6.3925,156.44,156.39,15.9852]
[1721142202878,6.3925,156.44,156.39,22.3793]
[1721142203307,6.3929,156.43,156.39,15.9852]
[1721142203611,0.17,156.42,156.39,22.3794]
[1721142203784,6.3923,156.44,156.39,22.3794]
[1721142204106,15.9252,156.48,156.4,0.41196231]
[1721142204310,45.0,156.47,156.43,6.3922]
[1721142204609,22.3161,156.48,156.44,6.3922]
[1721142204787,15.9252,156.48,156.43,15.9813]
[1721142205192,15.9252,156.48,156.44,6.392]
[1721142205193,22.3158,156.48,156.44,6.392]
[1721142205878,15.9252,156.48,156.45,6.3918]
[1721142206173,12.7957,156.5,156.45,6.3918]
[1721142206377,6.3902,156.49,156.45,6.3918]
[1721142206786,12.7955,156.5,156.45,6.3918]
[1721142207087,6.3899,156.5,156.46,6.3911]
[1721142207288,0.3428563,156.51,156.43,31.9631]
[1721142207488,0.3428563,156.51,156.48,22.3667]
[1721142207679,0.3428563,156.51,156.48,15.9762]
[1721142209079,0.3428563,156.51,156.48,22.3664]
[1721142209682,0.17,156.5,156.48,22.3664]
[1721142210203,0.17,156.5,156.49,6.3901]
[1721142210915,0.3428563,156.51,156.5,6.3897]
[1721142211288,0.3428563,156.51,156.49,6.39]
[1721142211487,0.3428563,156.51,156.5,6.3897]
[1721142212309,0.3428563,156.51,156.48,15.9762]
[1721142212310,0.3428563,156.51,156.49,6.39]
[1721142212490,0.3428563,156.51,156.5,6.3897]
[1721142213213,0.3428563,156.51,156.48,15.9762]
[1721142214515,0.3428563,156.51,156.5,6.3897]
[1721142215012,0.5128563,156.51,156.49,6.39]
[1721142215310,0.3428563,156.51,156.48,15.9762]
[1721142215613,0.17,156.5,156.49,6.3898]
[1721142215909,0.17,156.5,156.48,15.9762]
[1721142216322,0.17,156.5,156.46,6.3913]
[1721142216610,0.17,156.5,156.45,15.9788]
[1721142217028,6.5598,156.5,156.45,22.3703]
[1721142217196,6.5598,156.5,156.46,6.3912]
[1721142218029,0.17,156.5,156.47,15.9767]
[1721142218206,0.17,156.5,156.47,22.3674]
[1721142218589,0.17,156.5,156.48,6.3905]
[1721142218794,0.17,156.5,156.47,22.3675]
[1721142219018,0.3428563,156.51,156.49,6.3897]
[1721142219222,0.3428563,156.51,156.48,6.3905]
[1721142220603,0.17,156.5,156.47,22.3675]
[1721142220911,6.5601,156.5,156.45,6.3914]
[1721142221225,6.3902,156.49,156.45,6.3914]
[1721142221611,0.17,156.48,156.47,6.391]
[1721142222011,0.3428563,156.51,156.48,6.3905]
[1721142222210,0.3428563,156.51,156.48,15.9758]
[1721142222730,0.3428563,156.51,156.48,22.3661]
[1721142223434,0.17,156.5,156.49,6.3901]
[1721142223596,0.17,156.5,156.48,15.9758]
[1721142224424,0.17,156.5,156.48,22.366]
[1721142225196,0.3428563,156.51,156.48,15.9758]
[1721142225624,0.3428563,156.51,156.48,22.3663]
[1721142226013,0.3428563,156.51,156.5,6.3897]
[1721142226625,0.3428563,156.51,156.49,6.3901]
[1721142226932,0.3428563,156.51,156.5,6.3897]
[1721142227510,0.5128563,156.51,156.5,6.3897]
[1721142228905,0.3428563,156.51,156.5,6.3897]
[1721142229829,0.3428563,156.51,156.49,6.39]
[1721142230010,0.3428563,156.51,156.48,22.366]
[1721142230208,0.3428563,156.51,156.49,6.3901]
[1721142230416,0.17,156.5,156.48,22.3663]
[1721142230622,0.17,156.5,156.49,6.3901]
[1721142230807,0.17,156.5,156.48,15.9758]
[1721142230808,0.17,156.5,156.48,22.3663]
[1721142231405,6.5598,156.5,156.45,15.9788]
[1721142232003,0.17,156.5,156.46,6.391]
[1721142232419,0.17,156.5,156.47,6.3908]
[1721142232826,0.17,156.5,156.48,6.3905]
[1721142233404,0.17,156.5,156.49,6.3901]
[1721142234233,0.3428563,156.51,156.5,22.3641]
[1721142234424,0.3428563,156.51,156.5,15.9744]
[1721142234629,0.3428563,156.51,156.5,22.3641]
[1721142234936,0.3428563,156.51,156.5,15.9744]
[1721142235305,0.3428563,156.51,156.5,22.3641]
[1721142235555,0.5128563,156.51,156.5,22.3641]
[1721142237304,0.3428563,156.51,156.5,22.3641]
[1721142238831,0.3428563,156.51,156.5,42.3641]
[1721142240324,0.3428563,156.51,156.5,61.6241]
[1721142240543,0.3428563,156.51,156.5,87.3641]
[1721142241638,0.3428563,156.51,156.5,42.3641]
[1721142241945,0.3428563,156.51,156.5,22.3641]
[1721142242120,0.5128563,156.51,156.5,22.3641]
[1721142243049,0.5128563,156.51,156.5,15.9744]
[1721142243338,0.5128563,156.51,156.5,22.3641]
[1721142243833,0.3428563,156.51,156.5,22.3641]
[1721142244813,5.63e-05,156.51,156.5,112.642]
[1721142245014,5.63e-05,156.51,156.5,128.9862]
[1721142248334,5.63e-05,156.51,156.5,109.7262]
[1721142248836,5.63e-05,156.51,156.5,128.9862]
[1721142249235,5.63e-05,156.51,156.5,109.7262]
[1721142249940,5.63e-05,156.51,156.5,64.7262]
[1721142250123,5.63e-05,156.51,156.5,83.9862]
[1721142250317,5.63e-05,156.51,156.5,128.9862]
[1721142250568,5.63e-05,156.51,156.5,109.7262]
[1721142250846,5.63e-05,156.51,156.5,128.9862]
[1721142252317,31.41,156.64,156.61,6.3849]
[1721142252745,15.1254,156.65,156.61,6.3849]
[1721142253458,15.1254,156.65,156.62,6.3847]
[1721142253947,15.1254,156.65,156.62,6.3848]
[1721142254328,6.384,156.64,156.61,15.9629]
[1721142254545,0.17,156.63,156.61,15.9629]
[1721142255053,0.17,156.63,156.6,6.3853]